[Event "1st Bangalore GM-Open-A 2024"]
[Site "Bangalore"]
[Date "2024.01.18"]
[Round "1.40"]
[White "Abhay Bandewar"]
[Black "Audi Ameya"]
[Result "1/2-1/2"]
[ECO "E94"]
[WhiteElo "2025"]
[BlackElo "2385"]
[Annotator "RC"]
[PlyCount "142"]
[EventDate "2024.01.20"]
[EventType "swiss"]
[EventCountry "IND"]
[SourceTitle "playchess.com"]
[Source "ChessBase"]
[SourceQuality "1"]
[TimeControl "5400+30"]

1. d4 {[%emt 0:00:07]} Nf6 {[%emt 0:00:05]} 2. c4 {[%emt 0:00:07]} g6 {[%emt 0:00:04]} 3. Nc3 {[%emt 0:00:05]} Bg7 {[%emt 0:00:07]} 4. e4 {[%emt 0:00:57]} d6 {[%emt 0:00:04]} 5. Nf3 {[%emt 0:00:05]} O-O {[%emt 0:00:06]} 6. Be2 {[%emt 0:00:14]} e5 {[%emt 0:00:27]} 7. O-O {[%emt 0:00:07]} Na6 {[%emt 0:01:29]} 8. Be3 {[%emt 0:00:25]} Qe7 {[%emt 0:00:44]} 9. d5 {[%emt 0:06:11]} Ng4 {[%emt 0:00:25]} 10. Bg5 {[%emt 0:01:21]} f6 {[%emt 0:00:04]} 11. Bd2 {[%emt 0:04:41]} f5 {[%emt 0:00:59]} 12. Ne1 {[%emt 0:17:04]} Nf6 {[%emt 0:04:01]} 13. f3 {[%emt 0:01:30]} f4 {[%emt 0:07:08]} 14. Nd3 {[%emt 0:01:37]} Nc5 {[%emt 0:05:16]} 15. Be1 {[%emt 0:08:23]} Nxd3 {[%emt 0:04:11]} 16. Qxd3 {[%emt 0:00:29]} g5 {[%emt 0:00:21]} 17. b4 {[%emt 0:00:56]} Rf7 {[%emt 0:15:14]} 18. Bf2 {[%emt 0:05:59]} g4 {[%emt 0:02:12]} 19. Bh4 {[%emt 0:05:37]} h5 {[%emt 0:05:14]} 20. Rfc1 {[%emt 0:04:59]} Qf8 {[%emt 0:06:43]} 21. Qd1 {[%emt 0:03:14]} Bh6 {[%emt 0:03:41]} 22. Bxf6 {[%emt 0:07:31]} Rxf6 {[%emt 0:00:05]} 23. Rc2 {[%emt 0:00:32]} Rg6 {[%emt 0:07:33]} 24. c5 {[%emt 0:03:26]} Qd8 {[%emt 0:06:02]} 25. Kh1 {[%emt 0:04:22]} g3 {[%emt 0:01:57]} 26. cxd6 {[%emt 0:05:07]} cxd6 {[%emt 0:04:25]} 27. Nb5 {[%emt 0:00:52]} Qh4 {[%emt 0:08:39]} 28. Qg1 {[%emt 0:00:18]} Bd7 {[%emt 0:00:08]} 29. Rac1 {[%emt 0:03:09]} Kh8 {[%emt 0:01:23]} 30. Rc7 {[%emt 0:01:44]} gxh2 {[%emt 0:07:58]} 31. Qxh2 {[%emt 0:01:34]} Qxh2+ {[%emt 0:00:04]} 32. Kxh2 {[%emt 0:00:08]} Bxb5 {[%emt 0:00:06]} 33. Bxb5 {[%emt 0:00:07]} Rag8 {[%emt 0:00:03]} 34. R1c2 {[%emt 0:01:16]} R6g7 {[%emt 0:01:08]} 35. Bd7 {[%emt 0:00:35]} Rb8 {[%emt 0:04:04]} 36. b5 {[%emt 0:02:39]} Bg5 {[%emt 0:00:27]} 37. Bf5 {[%emt 0:01:35]} Rf8 {[%emt 0:02:42]} 38. Rc8 {[%emt 0:02:34]} Rxc8 {[%emt 0:00:33]} 39. Rxc8+ {[%emt 0:00:05]} Rg8 {[%emt 0:00:03]} 40. Rc7 {[%emt 0:00:36]} Rg7 {[%emt 0:00:06]} 41. Bd7 {[%emt 0:00:57]} Bd8 {[%emt 0:00:05]} 42. Rxb7 {[%emt 0:00:34]} Bb6 {[%emt 0:00:03]} 43. a4 {[%emt 0:02:27]} Kh7 {[%emt 0:00:36]} 44. a5 {[%emt 0:00:26]} Bxa5 {[%emt 0:00:37]} 45. Rxa7 {[%emt 0:00:06]} Bb6 {[%emt 0:00:20]} 46. Rb7 {[%emt 0:01:59]} Bf2 {[%emt 0:02:19]} 47. Bf5+ {[%emt 0:01:53]} Kh6 {[%emt 0:00:10]} 48. Rb8 {[%emt 0:00:05]} Ra7 {[%emt 0:01:01]} 49. Rg8 {[%emt 0:00:21]} Ra1 {[%emt 0:00:27]} 50. Rg6+ {[%emt 0:01:30]} Kh7 {[%emt 0:00:03]} 51. Rg5+ {[%emt 0:01:13]} Kh8 {[%emt 0:00:48]} 52. Rxh5+ {[%emt 0:00:30]} Kg7 {[%emt 0:00:03]} 53. Kh3 {[%emt 0:00:33]} Rh1+ {[%emt 0:03:10]} 54. Kg4 {[%emt 0:00:05]} Rxh5 {[%emt 0:00:02]} 55. Kxh5 {[%emt 0:00:06]} Kf6 {[%emt 0:00:05]} 56. Kg4 {[%emt 0:00:53]} Ke7 {[%emt 0:00:24]} 57. Kg5 {[%emt 0:00:31]} Be3 {[%emt 0:00:07]} 58. Bh3 {[%emt 0:00:21]} Bd4 {[%emt 0:00:48]} 59. Kg4 {[%emt 0:00:39]} Bf2 {[%emt 0:00:09]} 60. Kf5 {[%emt 0:00:52]} Be3 {[%emt 0:00:09]} 61. Kg6 {[%emt 0:00:29]} Bf2 {[%emt 0:00:13]} 62. Kh5 {[%emt 0:00:51]} Kf6 {[%emt 0:00:18]} 63. g4 {[%emt 0:00:34]} fxg3 {[%emt 0:00:07]} 64. Kg4 {[%emt 0:00:08]} Ke7 {[%emt 0:00:23]} 65. Kf5 {[%emt 0:00:58]} Be3 {[%emt 0:00:26]} 66. Bg2 {[%emt 0:00:23]} Bd4 {[%emt 0:00:12]} 67. f4 {[%emt 0:00:19]} exf4 {[%emt 0:00:18]} 68. Kxf4 {[%emt 0:00:06]} Be5+ {[%emt 0:00:32]} 69. Ke3 {[%emt 0:00:21]} Kd8 {[%emt 0:00:04]} 70. Kd3 {[%emt 0:00:51]} Kc7 {[%emt 0:00:03]} 71. Kc4 {[%emt 0:00:27]} Kb6 {[%emt 0:00:03]} 1/2-1/2

[Event "1st Bangalore GM-Open-A 2024"]
[Site "Bangalore"]
[Date "2024.01.19"]
[Round "2.1"]
[White "Avinash Ramesh"]
[Black "Gupta, Abhijeet"]
[Result "0-1"]
[ECO "B92"]
[WhiteElo "2290"]
[BlackElo "2605"]
[Annotator "TA"]
[PlyCount "92"]
[EventDate "2024.01.20"]
[EventType "swiss"]
[EventCountry "IND"]
[SourceTitle "playchess.com"]
[Source "ChessBase"]
[SourceQuality "1"]
[TimeControl "5400+30"]

{[%evp 24,92,27,13,37,10,42,-9,-5,-81,-59,-55,-60,-62,-61,-48,-45,-45,-38,-94,-94,-95,-87,-95,-92,-112,-107,-113,-110,-116,-79,-127,-135,-147,-132,-210,-199,-212,-212,-216,-209,-218,-164,-224,-224,-216,-173,-224,-201,-235,-229,-243,-228,-231,-193,-400,-402,-393,-379,-388,-390,-382,-380,-413,-397,-597,-409,-781,-799,-802,-771]} 1. e4 {[%emt 0:00:18]} c5 {[%emt 0:00:35]} 2. Nf3 {[%emt 0:00:09]} d6 {[%emt 0:00:05]} 3. d4 {[%emt 0:00:32]} cxd4 {[%emt 0:00:06]} 4. Nxd4 {[%emt 0:00:03]} Nf6 {[%emt 0:00:06]} 5. Nc3 {[%emt 0:00:04]} a6 {[%emt 0:00:08]} 6. Be2 {[%emt 0:00:05]} e5 {[%emt 0:01:19]} 7. Nb3 {[%emt 0:00:06]} Be7 {[%emt 0:00:04]} 8. Be3 {[%emt 0:00:17]} Be6 {[%emt 0:00:32]} 9. Nd5 {[%emt 0:00:54]} Nbd7 {[%emt 0:01:27]} 10. Qd3 {[%emt 0:00:09]} Rc8 {[%emt 0:03:36]} 11. c4 {[%emt 0:02:46]} Bxd5 $5 {[%emt 0:02:53][%mdl 4] A promising side line.} 12. exd5 {[%emt 0:01:22]} O-O {[%emt 0:00:25]} 13. O-O {[%emt 0:00:08]} h5 $5 {[%emt 0:00:09][%mdl 4] Exploring less charted territory. B92: Sicilian Najdorf: 6 Be2.} 14. a4 {[%emt 0:07:20] [#]} a5 $146 {[%emt 0:04:53]} ({Predecessor:} 14... e4 15. Qd4 Ne5 16. Nd2 Nfg4 17. Nxe4 f5 18. Nd2 Bf6 19. Qb6 Qe7 20. Ra3 Nd7 21. Qb4 {½-½ Zelbova,L (1967)-Lhotska,A (2029) CZE-ch (Women) 2022 (5)}) 15. Nc1 {[%emt 0:11:34]} (15. Rad1 $14) 15... Ng4 $11 {[%emt 0:03:04] The position is equal.} 16. Na2 {[%emt 0:02:18]} (16. Bd2 $1 $11 {remains equal.}) 16... Bg5 {[%emt 0:07:02]} 17. Bxg5 {[%emt 0:14:24]} Qxg5 {[%emt 0:00:05]} 18. h3 {[%emt 0:00:09]} Nc5 {[%emt 0:11:56][%csl LRa4,LRd3][%cal Bd7c5,Bc5e4,Be4c3][%mdl 32]} 19. Qg3 {[%emt 0:18:10][%mdl 64] Pin} Ne4 {[%emt 0:09:24] Excellent horsemanship.} 20. Qd3 {[%emt 0:00:22] White is weak on the dark squares} Ngf6 $40 {[%emt 0:00:12][%cal Bg4f6,Bf6d7,Bd7c5][%mdl 160] Black attacks.} 21. Nc3 {[%emt 0:00:50]} (21. Qc2 $15) 21... Nxc3 $1 $17 {[%emt 0:01:33]} 22. bxc3 {[%emt 0:02:55]} Nd7 {[%emt 0:02:00] Black is more active.} 23. Rfb1 {[%emt 0:00:25]} Nc5 {[%emt 0:01:51]} 24. Qe3 {[%emt 0:01:08]} Qxe3 {[%emt 0:02:18]} 25. fxe3 {[%emt 0:00:14]} h4 {[%emt 0:00:03]} 26. Rb6 {[%emt 0:01:45]} Rfd8 {[%emt 0:00:08]} 27. Kf1 {[%emt 0:02:42]} (27. Bd1 $142) 27... Rc7 {[%emt 0:01:41]} 28. Rb5 {[%emt 0:01:56]} Kf8 {[%emt 0:01:58]} 29. Ra3 {[%emt 0:00:57] [#]} (29. Bd1 $17) 29... Ra8 $1 $19 {[%emt 0:00:00]} 30. Bd1 {[%emt 0:00:24]} Ke7 {[%emt 0:00:36]} (30... Ne4 31. Be2 $17) 31. Bc2 {[%emt 0:00:13] [#]} f5 $1 {[%emt 0:00:18][%mdl 512]} 32. Ke2 {[%emt 0:00:06]} (32. e4 fxe4) 32... g6 {[%emt 0:00:55]} 33. Ra1 {[%emt 0:01:40] [#]} (33. e4 $142) 33... e4 $1 {[%emt 0:00:11]} 34. Rab1 {[%emt 0:06:52]} Ra7 {[%emt 0:00:40]} 35. Kd2 {[%emt 0:00:26]} (35. Rd1 $142) 35... Nd7 {[%emt 0:01:10]} 36. Bd1 {[%emt 0:00:06]} Ne5 {[%emt 0:01:42]} (36... Rxc4 37. Rxb7 Rc7 38. Rxc7 Rxc7 39. Rb5 $17) 37. Be2 {[%emt 0:00:02][%cal Oc4c5]} Nxc4+ {[%emt 0:01:02]} 38. Bxc4 {[%emt 0:00:17]} Rxc4 {[%emt 0:00:04]} 39. Rxb7+ $2 {[%emt 0:00:14]} (39. Kc2) 39... Rxb7 {[%emt 0:00:03]} 40. Rxb7+ {[%emt 0:00:04][%mdl 4096] Endgame KR-KR} Kf6 {[%emt 0:00:02]} 41. Kc2 {[%emt 0:00:42]} Rc5 {[%emt 0:03:23]} ({Stronger than} 41... Rxa4 42. Kb3 Ra1 43. Rd7 $19) 42. Rb6 {[%emt 0:05:17]} Ke5 {[%emt 0:01:56]} (42... Rxd5 $2 {is the wrong capture.} 43. Ra6 $19) 43. Rb7 {[%emt 0:00:06]} Rxd5 {[%emt 0:00:23]} ({Not} 43... Kxd5 44. Re7 $17) 44. Rg7 {[%emt 0:00:05]} (44. Ra7 {was worth a try.} Ke6 45. Rg7) 44... Kf6 {[%emt 0:00:44]} 45. Rh7 {[%emt 0:00:06]} (45. Ra7 $142 Ke6 46. Ra8) 45... Rd3 {[%emt 0:00:52]} 46. Rxh4 {[%emt 0:00:05]} Rxe3 {[%emt 0:00:07] Weighted Error Value: White=0.42/Black=0.14 (very precise)} 0-1

[Event "1st Bangalore GM-Open-A 2024"]
[Site "Bangalore"]
[Date "2024.01.19"]
[Round "2.2"]
[White "Goutham Krishna H"]
[Black "Short, Nigel D"]
[Result "0-1"]
[ECO "D11"]
[WhiteElo "2288"]
[BlackElo "2592"]
[Annotator "TA"]
[PlyCount "152"]
[EventDate "2024.01.20"]
[EventType "swiss"]
[EventCountry "IND"]
[SourceTitle "playchess.com"]
[Source "ChessBase"]
[SourceQuality "1"]
[TimeControl "5400+30"]

{[%evp 9,152,0,0,7,31,6,5,-4,-3,-9,3,-7,-6,-32,-43,-24,-29,-46,-43,-99,-96,-77,-38,-118,-124,-129,-83,-118,-114,-111,-100,-147,-123,-111,-125,-143,-86,-93,-99,-97,-97,-122,-120,-125,-136,-124,-125,-146,-136,-129,-100,-127,-135,-135,-131,-289,-281,-406,-279,-327,-323,-332,-326,-316,-313,-303,-250,-233,-234,-206,-217,-490,-490,-458,-450,-793,-780,-868,-895,-623,-1163,-1162,-1129,-1149,-1140,-1058,-1039,-2521,-2497,-1835,-1741,-1384,-1388,-1362,-1354,-1258,-1160,-1081,-1042,-828,-468,-773,-758,-589,-784,-754,-563,-1041,-1181,-994,-860,-1175,-1122,-1828,-987,-1879,-2306,-12833,-12834,-12834,-12833,-12837,-12834,-12837,-12835,-12835,-12834,-12833,-12834,-12835,-12836,-12837,-12837,-12837,-1943,-12843,-12843,-12843,-12844,-12847,-12847,-12848,-12849,-12849,-12849]} 1. d4 {[%emt 0:00:04]} d5 {[%emt 0:00:28]} 2. Nf3 {[%emt 0:00:13]} Nf6 {[%emt 0:00:27]} 3. c4 {[%emt 0:00:08]} c6 {[%emt 0:00:15]} 4. Nbd2 {[%emt 0:00:15]} Bf5 {[%emt 0:00:35]} 5. Nh4 {[%emt 0:00:03]} Be6 {[%emt 0:00:28]} 6. e3 {[%emt 0:00:32] D11: Slav Defence: 3 Nf3 sidelines and 3...Nf6 4 e3 Bg4.} g6 {[%emt 0:00:35]} 7. Bd3 {[%emt 0:00:41]} Bg7 {[%emt 0:01:37][%cal Oc6c5]} 8. O-O {[%emt 0:00:04] The position is equal.} dxc4 $5 {[%emt 0:01:33][%mdl 4] A promising side line.} 9. Nxc4 {[%emt 0:02:46] [#]} c5 $1 {[%emt 0:02:33]} 10. Nf3 {[%emt 0:05:03]} O-O {[%emt 0:02:23] [#]} 11. Qe2 $146 {[%emt 0:09:52]} ({Predecessor:} 11. dxc5 Nc6 12. Nce5 Nxe5 13. Nxe5 Qd5 14. Nf3 Qxc5 15. Nd4 Bd5 16. Qe2 Rfd8 17. Rd1 {0-1 Greet,A (2449)-Dearing,E (2411) BCF-chTb 1112 (4NCL) 2011 (7.81)}) 11... Nc6 {[%emt 0:06:06][%cal Rc5d4]} 12. dxc5 {[%emt 0:03:00]} Nd7 {[%emt 0:02:56]} 13. Ng5 {[%emt 0:12:57]} Bd5 {[%emt 0:00:53]} (13... Nxc5 {simplifies} 14. Nxe6 Nxe6 15. Rd1 Qc7) 14. Rd1 {[%emt 0:01:58]} (14. e4 $15 Nd4 15. Qe3 Bxc4 16. Bxc4) 14... Nxc5 $17 {[%emt 0:03:10]} 15. Bc2 {[%emt 0:04:30]} e6 {[%emt 0:02:40]} (15... Rc8 $5 {[%cal Re7e6]} 16. Qe1 f5 $15) 16. Nf3 {[%emt 0:04:22] [#]} (16. e4 $15 Nd4 17. Rxd4 Bxd4 18. exd5 exd5 19. Na3) 16... Nb4 $1 {[%emt 0:07:49]} 17. Bb3 {[%emt 0:06:45]} b5 {[%emt 0:07:53]} ({Black should play} 17... Qc7 18. Bd2 Nbd3) 18. Na3 {[%emt 0:02:50]} Nxb3 {[%emt 0:03:55]} 19. axb3 {[%emt 0:00:03] Strongly threatening e4.} Qe7 {[%emt 0:00:37]} 20. Nd2 {[%emt 0:03:08]} (20. Nxb5 $142 Bxb3 21. Rd2) 20... a6 {[%emt 0:04:06] Black has more active pieces.} (20... Qg5 21. e4 Bc6 22. Ndb1 $17) 21. e4 {[%emt 0:00:17]} Bb7 {[%emt 0:00:51] Threatens to win with ...Rfd8. A strong pair of Bishops.} 22. Nf3 {[%emt 0:00:53]} Rfd8 {[%emt 0:06:14]} (22... h6 $142 23. Bf4 Rfd8) 23. Bg5 {[%emt 0:02:28]} f6 {[%emt 0:00:06]} 24. Bd2 {[%emt 0:00:50]} e5 {[%emt 0:02:06]} 25. Bc3 {[%emt 0:01:36][%cal Oa3c4] [#]} Bf8 $1 {[%emt 0:01:37]} 26. Nc2 {[%emt 0:05:48]} Nxc2 {[%emt 0:03:51]} 27. Qxc2 {[%emt 0:00:03]} b4 $36 {[%emt 0:00:12][%mdl 2048] Black is really pushing.} 28. Be1 {[%emt 0:00:20]} Rac8 {[%emt 0:00:41]} 29. Qe2 {[%emt 0:00:02]} Qc5 {[%emt 0:01:00]} 30. Rxd8 {[%emt 0:09:22]} Rxd8 {[%emt 0:00:32]} 31. h3 {[%emt 0:00:35]} Rc8 {[%emt 0:17:36]} 32. Ra4 $2 {[%emt 0:07:36] Loses the game.} (32. Nd2 $17) 32... Qb5 $19 {[%emt 0:01:42]} 33. Qe3 {[%emt 0:07:04]} (33. Qd1 $142) 33... Bc5 {[%emt 0:00:16]} 34. Qh6 {[%emt 0:01:22]} Bxe4 {[%emt 0:00:15]} 35. Qh4 {[%emt 0:00:30]} Bxf3 {[%emt 0:09:57]} 36. gxf3 {[%emt 0:00:25]} Be7 {[%emt 0:00:21] And now ...Rc1 would win.} 37. Ra1 {[%emt 0:01:37] Prevents Rc1} Qd3 {[%emt 0:02:28] Inhibits Bd2.} 38. Bxb4 {[%emt 0:01:54]} Bxb4 {[%emt 0:01:31]} 39. Qxb4 {[%emt 0:00:02]} Qxf3 {[%emt 0:00:07][%mdl 4096] Endgame KQR-KQR} 40. Qd6 $2 {[%emt 0:02:11]} (40. Qd2 {was worth a try.}) 40... Rc2 {[%emt 0:01:09] Black is clearly winning.} (40... Qxb3 41. Qxa6 Rf8 42. Qa3 Qxa3 43. bxa3 $17) (40... Qxh3 41. Qxf6 Qg4+ 42. Kf1 $17) 41. Rf1 {[%emt 0:02:20]} Kg7 {[%emt 0:00:43]} (41... Qxh3 $2 {is the wrong capture.} 42. Qxf6 Qg4+ 43. Kh1 $19) (41... Rxb2 42. Qd8+ Kg7 43. Qc7+ Kh8 44. Qd8+ Kg7 45. Qc7+ Kh8 46. Qd8+ Kg7 $11) 42. Qxa6 {[%emt 0:00:57]} (42. Qd7+ $142 Kh6 43. Qd1 Qxb3 44. Qg4) 42... Qxh3 {[%emt 0:00:36]} 43. Qb7+ {[%emt 0:00:16]} Kh6 {[%emt 0:00:10]} 44. Qe4 {[%emt 0:00:01]} Rxb2 {[%emt 0:00:46]} 45. b4 {[%emt 0:00:03]} Kh5 {[%emt 0:01:10] White must now prevent ...Qg4+.} 46. Rb1 {[%emt 0:00:25]} f5 {[%emt 0:01:04]} 47. Qe1 {[%emt 0:00:37]} Qg4+ {[%emt 0:00:07]} 48. Kh2 {[%emt 0:00:15]} Re2 {[%emt 0:00:33]} 49. Qf1 {[%emt 0:00:15]} Qh4+ {[%emt 0:01:53]} 50. Kg1 {[%emt 0:00:03]} Re4 {[%emt 0:00:45] ( -> ...Rg4+)} 51. Qd1+ {[%emt 0:00:38]} Rg4+ {[%emt 0:00:47]} 52. Kf1 {[%emt 0:00:01]} Kh6 {[%emt 0:02:26]} 53. Qd2+ {[%emt 0:00:36]} Rf4 {[%emt 0:01:01]} 54. Rb3 {[%emt 0:00:23]} Qh1+ {[%emt 0:01:06]} 55. Ke2 {[%emt 0:00:01]} Qe4+ {[%emt 0:00:06]} 56. Kd1 {[%emt 0:00:36]} Qd4 {[%emt 0:00:25]} 57. Qxd4 {[%emt 0:00:06]} Rxd4+ {[%emt 0:00:03] KR-KR} ({And not} 57... exd4 58. b5 Re4 59. b6 $11) 58. Ke2 {[%emt 0:00:24]} Kg5 {[%emt 0:00:24]} 59. b5 {[%emt 0:00:04]} h5 {[%emt 0:01:06] aiming for ...Rd8.} 60. b6 {[%emt 0:00:35]} Rd8 {[%emt 0:00:04] ...h4 is the strong threat.} 61. b7 {[%emt 0:00:01]} Rb8 {[%emt 0:00:08]} 62. Rb6 {[%emt 0:02:32]} f4 {[%emt 0:00:17] Hoping for ...Kf5.} 63. f3 {[%emt 0:02:10]} Kf5 {[%emt 0:00:06]} 64. Kf2 {[%emt 0:00:02]} g5 {[%emt 0:00:12][%cal Bg6g5,Bg5g4,Bg4g3][%mdl 32]} 65. Rb5 {[%emt 0:00:04]} g4 {[%emt 0:00:19]} 66. Kg2 {[%emt 0:00:01]} Ke6 {[%emt 0:00:54]} 67. Rb6+ {[%emt 0:00:34]} Kd5 {[%emt 0:00:16]} 68. Rb5+ {[%emt 0:00:18]} Kd4 {[%emt 0:01:08]} 69. Kf2 {[%emt 0:02:38]} g3+ {[%emt 0:01:24]} 70. Kg2 {[%emt 0:00:12]} h4 {[%emt 0:00:10][%cal Bh5h4,Bh4h3][%mdl 32]} 71. Kh3 {[%emt 0:01:32]} Kc4 {[%emt 0:00:11]} (71... e4 $142 72. Rb4+ Kd3 73. Rxe4 Rxb7) 72. Rxe5 {[%emt 0:02:31]} Rxb7 {[%emt 0:00:04]} 73. Re4+ {[%emt 0:00:28]} Kd3 {[%emt 0:00:11]} 74. Rxf4 {[%emt 0:00:02]} Rg7 {[%emt 0:00:09]} ({Inferior is} 74... Rb2 75. Rxh4 g2 76. Rg4 $11) 75. Kg2 {[%emt 0:01:10] [#]} h3+ $1 {[%emt 0:00:06][%mdl 512]} 76. Kg1 {[%emt 0:00:02]} Rc7 {[%emt 0:00:22] Weighted Error Value: White=0.52/Black=0.08 (flawless)} 0-1

[Event "1st Bangalore GM-Open-A 2024"]
[Site "Bangalore"]
[Date "2024.01.19"]
[Round "2.3"]
[White "Wagh Suyog"]
[Black "Aronyak Ghosh"]
[Result "0-1"]
[ECO "D12"]
[WhiteElo "2266"]
[BlackElo "2541"]
[Annotator "TA"]
[PlyCount "127"]
[EventDate "2024.01.20"]
[EventType "swiss"]
[EventCountry "IND"]
[SourceTitle "playchess.com"]
[Source "ChessBase"]
[SourceQuality "1"]
[TimeControl "5400+30"]

{[%evp 13,127,31,30,23,36,0,25,0,4,-43,-38,-33,-43,-51,-28,-24,0,-18,0,-21,0,-44,-48,-75,-56,-94,-77,-99,-88,-118,-78,-226,-209,-178,-173,-179,-61,-229,-31,-40,-39,-27,-31,-120,-124,-123,-114,-122,-113,-134,-121,-153,-118,-180,-170,-239,-232,-275,-245,-246,-245,-381,-386,-369,-295,-293,-258,-266,-266,-283,-242,-339,-339,-327,-317,-351,-313,-346,-312,-383,-309,-387,-387,-384,-378,-375,-333,-354,-301,-361,-368,-362,-336,-453,-428,-461,-461,-432,-443,-434,-411,-429,-350,-460,-452,-423,-424,-527,-501,-681,-764,-705,-710,-681,-640,-29985]} 1. d4 {[%emt 0:12:59]} Nf6 {[%emt 0:00:54]} 2. c4 {[%emt 0:01:47]} c6 {[%emt 0:01:16]} 3. Nf3 {[%emt 0:06:13]} d5 {[%emt 0:00:38]} 4. e3 {[%emt 0:00:05]} Bf5 {[%emt 0:01:16]} 5. Nc3 {[%emt 0:00:05]} e6 {[%emt 0:00:11]} 6. Nh4 {[%emt 0:00:04]} Bg6 {[%emt 0:00:17]} 7. Nxg6 {[%emt 0:03:29]} hxg6 {[%emt 0:00:20]} 8. Bd2 {[%emt 0:03:17] D12: Slav Defence: 3 Nf3 Nf6 4 e3 Bf5.} Nbd7 {[%emt 0:01:23]} 9. Be2 {[%emt 0:04:14]} Bd6 {[%emt 0:08:25] [#]} 10. Rc1 $146 {[%emt 0:04:55] White has an edge.} ({Predecessor:} 10. g3 Qe7 11. Qb3 Rb8 12. O-O dxc4 13. Qxc4 e5 14. Bf3 Nb6 15. Qd3 Rd8 16. Bg2 {0-1 Urkedal,F (2557)-Sasikiran,K (2661) Rilton Cup 46th 2016 (5)}) 10... Qe7 {[%emt 0:02:15]} (10... Rxh2 11. Rxh2 Bxh2 12. g3 $16) 11. Qc2 {[%emt 0:05:55]} (11. g3 $11 {deserves consideration.}) 11... dxc4 $15 {[%emt 0:14:02]} (11... Rxh2 12. Rxh2 Bxh2 13. g3 $14) 12. Bxc4 {[%emt 0:03:39]} e5 {[%emt 0:01:15]} 13. dxe5 {[%emt 0:01:45]} Nxe5 {[%emt 0:01:17]} 14. Be2 {[%emt 0:00:41]} Rd8 {[%emt 0:04:09]} 15. a3 {[%emt 0:02:53]} g5 {[%emt 0:13:30][%cal Bg6g5,Bg5g4][%mdl 32]} 16. Rd1 {[%emt 0:13:18]} Qe6 {[%emt 0:03:24]} 17. Kf1 {[%emt 0:04:25]} Kf8 {[%emt 0:08:49]} 18. Bc1 {[%emt 0:03:40]} g4 {[%emt 0:01:15]} 19. g3 {[%emt 0:06:27]} Re8 {[%emt 0:08:30]} 20. Kg2 {[%emt 0:00:42]} Bc7 {[%emt 0:00:19]} 21. b4 {[%emt 0:09:53] [#]} Nf3 $1 {[%emt 0:01:14][%mdl 576] Deflection} 22. Bxf3 {[%emt 0:05:44]} (22. Bb2 $17) (22. Bd3 c5) 22... gxf3+ $19 {[%emt 0:00:03]} 23. Kxf3 {[%emt 0:00:02]} Qh3 {[%emt 0:03:40]} 24. Ke2 {[%emt 0:00:28]} Be5 {[%emt 0:01:24]} (24... Ng4 $19 {[%cal Og4f2] And now ...Nxf2! would win.} 25. Ne4 (25. Qf5 $2 Rh5 $19) 25... Rh5) 25. Bb2 $2 {[%emt 0:00:37] [#]} (25. Ne4 $15) 25... Qh5+ $2 {[%emt 0:02:18]} (25... Ng4 $1 $19 {[%cal Rg4f2] ...Nxf2! would be deadly.} 26. Rdf1 (26. Qf5 $2 Rh5 $19) 26... Rh6) 26. Kd2 $1 $15 {[%emt 0:01:15]} Qf3 {[%emt 0:02:44]} 27. Kc1 {[%emt 0:00:15]} Ng4 {[%emt 0:00:11]} 28. Kb1 {[%emt 0:01:46] Black keeps a firm grip on the game.} ({White should try} 28. Rdf1 $15) 28... Qxf2 $17 {[%emt 0:00:45] Black is much more active.} 29. Rd2 {[%emt 0:01:19]} Qf3 $36 {[%emt 0:04:51][%mdl 2048] Black is in control.} (29... Qxe3 30. Re2 Qf3 31. Rhe1) 30. Re1 {[%emt 0:00:02]} Rh6 {[%emt 0:00:18]} (30... Nxe3 31. Qd3 Bxc3 32. Qxc3 Qf5+ 33. Kc1 $14) 31. Nd1 {[%emt 0:02:29]} Bxb2 {[%emt 0:00:42]} 32. Kxb2 {[%emt 0:00:07]} Rhe6 {[%emt 0:01:36]} (32... Nxe3 $2 33. Qc5+ Kg8 34. Rxe3 $18) 33. Qc5+ {[%emt 0:01:32]} (33. Ree2 $17 {was called for.}) 33... Kg8 $19 {[%emt 0:00:01]} 34. Qxa7 {[%emt 0:00:25] [#]} (34. Qc2 $142) 34... Ne5 $1 {[%emt 0:00:57] Threatens to win with ...Nc4+.} ({Inferior is} 34... Nxe3 35. Nxe3 Rxe3 36. Rxe3 Rxe3 37. Qb8+ Kh7 38. Qf4 $15) 35. Qd4 {[%emt 0:00:39] [#] Prevents Nc4+.} Rd6 $3 {[%emt 0:02:33][%mdl 576] Decoy} 36. Qxd6 {[%emt 0:00:39]} Nc4+ {[%emt 0:00:01]} 37. Kc3 {[%emt 0:00:17]} (37. Kb3 $142 Nxd6 38. Rxd6) 37... Nxd6 {[%emt 0:00:10]} 38. Rxd6 {[%emt 0:00:02]} Ra8 {[%emt 0:01:08]} 39. Kb3 {[%emt 0:00:27]} Qg2 {[%emt 0:00:05]} 40. e4 {[%emt 0:00:26]} Qxh2 {[%emt 0:00:32]} 41. Rd3 {[%emt 0:00:07]} b6 {[%emt 0:01:39]} 42. Nb2 {[%emt 0:01:07]} (42. Nc3 $142) 42... Qh6 {[%emt 0:00:37]} 43. Kc2 {[%emt 0:00:52]} Qe6 {[%emt 0:00:41]} 44. Rc3 {[%emt 0:00:28]} Rd8 {[%emt 0:00:22]} 45. Re2 {[%emt 0:00:54]} f6 {[%emt 0:00:50]} 46. Rce3 {[%emt 0:00:11]} Qe5 {[%emt 0:00:57]} 47. Nd3 {[%emt 0:00:09]} Qb5 {[%emt 0:00:57] ...Qc4+ is the strong threat.} 48. Nb2 {[%emt 0:00:05] Wards off Qc4+} c5 {[%emt 0:00:47]} 49. bxc5 {[%emt 0:01:09]} bxc5 {[%emt 0:00:03]} 50. a4 {[%emt 0:00:08]} Qb7 {[%emt 0:00:44][%cal Oc5c4]} 51. Rb3 {[%emt 0:00:08]} Qa6 {[%emt 0:00:10]} 52. Rd2 {[%emt 0:00:36]} Re8 {[%emt 0:00:46]} 53. Rc3 {[%emt 0:00:37]} Qb7 {[%emt 0:02:19]} (53... Rxe4 $2 {perishes.} 54. Rxc5 Re1 55. Rcd5 $19) 54. Rxc5 {[%emt 0:00:39]} Qxe4+ {[%emt 0:00:11]} 55. Rd3 {[%emt 0:00:33]} Rb8 {[%emt 0:00:18]} 56. Rb5 {[%emt 0:00:27]} Rc8+ {[%emt 0:01:10]} ({Wrong is} 56... Rd8 $2 57. Rbb3 $19) 57. Kb3 {[%emt 0:00:15]} Rc1 {[%emt 0:00:13]} 58. Rb4 {[%emt 0:01:35]} Qe6+ {[%emt 0:01:10] Black is clearly winning.} 59. Rc4 {[%emt 0:00:01]} Rb1 {[%emt 0:00:10]} 60. Rdd4 {[%emt 0:01:50]} Qe2 {[%emt 0:01:01][%csl Gb1][%cal Re2b2]} 61. Rd8+ {[%emt 0:00:00]} Kh7 {[%emt 0:00:28][%csl Gb1][%cal Re2b2]} 62. Rc2 {[%emt 0:00:00]} Qe6+ {[%emt 0:00:10]} 63. Kc3 {[%emt 0:00:00]} Qc6+ {[%emt 0:01:22][%mdl 64] Skewer} 64. Kd4 {[%emt 0:01:27] Weighted Error Value: White=0.40/Black=0.20 (precise)} 0-1